bitfinex-derivatives/quotes_ETHF0:USTF0_20251107
["timestamp","ask_amount","ask_price","bid_price","bid_amount"]
[1762547091207,0.47176,3435.8,3435.7,0.47536665]
[1762547091510,0.2431,3435.8,3435.7,0.47536665]
[1762547092009,0.1405,3436.5,3436.0,0.47173]
[1762547092010,0.71483,3436.1,3436.0,0.47173]
[1762547092505,0.47171,3436.2,3435.7,0.00360665]
[1762547092812,0.71486,3435.8,3435.7,0.00360665]
[1762547093008,0.2431,3435.3,3435.2,0.81304]
[1762547093211,0.2431,3435.3,3435.2,0.47184]
[1762547093409,0.1405,3435.5,3433.5,1.70325878]
[1762547093605,0.71494,3435.3,3435.2,0.47183]
[1762547093808,0.2431,3435.3,3435.2,0.47183]
[1762547094009,0.00436091,3435.6,3435.5,0.47179]
[1762547094208,0.00436091,3435.6,3435.4,0.47181]
[1762547094406,0.4718,3435.5,3435.4,0.47181]
[1762547096517,0.00436091,3435.6,3435.5,0.7011]
[1762547096713,0.00436091,3435.6,3435.5,0.8375]
[1762547100117,0.00377143,3436.8,3436.7,0.47163]
[1762547100321,0.47165,3436.6,3436.5,0.70665]
[1762547100512,0.23897143,3436.8,3436.7,0.47163]
[1762547100714,0.00377143,3436.8,3436.7,0.70663]
[1762547101517,0.00377143,3436.8,3435.5,0.1364]
[1762547101518,0.1478,3436.5,3435.5,0.1364]
[1762547101820,0.1478,3436.5,3434.5,0.1364]
[1762547101821,0.47186,3435.1,3435.0,0.47187]
[1762547102016,0.70704,3435.3,3435.2,0.47183]
[1762547102319,0.00436091,3435.6,3435.5,0.4718]
[1762547102510,0.47615091,3435.6,3435.5,0.4718]
[1762547102712,0.47615091,3435.6,3435.5,0.47415525]
[1762547102921,0.71135091,3435.6,3435.5,0.00235525]
[1762547104121,0.23956091,3435.6,3435.5,0.47415525]
[1762547104324,0.00436091,3435.6,3435.5,0.47415525]
[1762547104618,0.00436091,3435.6,3435.5,0.70915525]
[1762547105316,0.15216091,3435.6,3434.5,0.1364]
[1762547105516,0.15216091,3435.6,3434.9,0.92184091]
[1762547105817,0.47185,3435.2,3435.0,0.47186]
[1762547106018,0.47186,3435.1,3434.9,0.44996091]
[1762547106213,0.47193,3434.7,3434.5,0.1364]
[1762547106418,0.47193,3434.7,3434.5,0.00278807]
[1762547107018,0.47193,3434.7,3434.5,0.47472807]
[1762547107222,0.47188,3434.9,3434.8,0.47188]
[1762547107623,0.09145412,3435.1,3434.6,0.47192]
[1762547107922,1.19723358,3435.6,3434.6,0.47192]
[1762547108123,0.47191,3434.8,3434.7,0.47191]
[1762547108321,0.47191,3434.8,3434.5,0.00278807]
[1762547108322,0.47192,3434.6,3434.5,0.00278807]
[1762547108521,0.47192,3434.6,3434.5,0.47472807]
[1762547108724,0.47192,3434.6,3434.5,0.00278807]
[1762547108926,0.0787,3435.0,3434.5,0.00278807]
[1762547109129,0.09153722,3435.0,3434.9,0.47188]
[1762547109421,0.00436091,3435.6,3435.0,0.1364]
[1762547109626,0.24376226,3435.6,3435.2,0.47184]
[1762547109925,0.00436091,3435.6,3435.5,0.4718]
[1762547110128,0.00436091,3435.6,3435.0,0.1364]
[1762547110318,0.00436091,3435.6,3435.5,0.4718]
[1762547110513,0.47615091,3435.6,3435.0,0.1364]
[1762547110713,0.4718,3435.5,3435.4,0.4718]
[1762547110926,0.47615091,3435.6,3435.0,0.1364]
[1762547111125,0.47615091,3435.6,3435.5,0.4718]
[1762547111325,0.00436091,3435.6,3435.5,0.7068]
[1762547111519,0.47615091,3435.6,3435.5,0.4718]
[1762547111720,0.09603871,3435.6,3435.0,0.1364]
[1762547111920,0.47181,3435.4,3435.0,0.1364]
[1762547112120,0.5634778,3435.5,3435.4,0.47181]
[1762547112516,0.76020092,3435.5,3435.4,0.47181]
[1762547113322,0.76020092,3435.5,3435.4,0.70681]
[1762547113922,0.00436091,3435.6,3435.5,0.7068]
[1762547117934,1.1275441,3436.8,3435.9,0.47173]
[1762547118139,0.2352,3436.3,3436.2,0.47168]
[1762547118640,1.23280419,3436.5,3436.4,0.47167]
[1762547118837,1.46800419,3436.5,3436.4,0.47167]
[1762547119038,0.76114419,3436.5,3436.1,0.00436732]
[1762547119236,0.47179,3435.6,3435.5,0.47178]
[1762547119442,0.1478,3436.0,3435.2,0.235]
[1762547119738,0.47182,3435.4,3435.0,0.1364]
[1762547120044,0.70702,3435.4,3435.3,0.47182]
[1762547120340,0.09188527,3435.4,3435.3,0.70682]
[1762547120544,0.47181,3435.4,3435.3,0.235]
[1762547120936,1.23256289,3435.4,3435.3,0.235]
[1762547121434,0.76075289,3435.4,3435.3,0.47182]
[1762547121935,0.47179,3435.6,3435.5,0.47177]
[1762547122337,0.7604663,3435.8,3435.0,0.14076732]
[1762547122539,0.47179,3435.5,3435.4,0.47179]
[1762547122739,0.9956663,3435.6,3435.5,0.47179]
[1762547122945,0.09183708,3435.6,3435.5,0.47179]
[1762547123143,0.47177,3435.7,3435.6,0.47177]
[1762547123338,0.47177,3435.7,3435.5,0.235]
[1762547123339,0.47178,3435.6,3435.5,0.235]
[1762547123535,0.47178,3435.6,3435.0,0.00436732]
[1762547123536,0.47185,3435.1,3435.0,0.00436732]
[1762547123740,0.70705,3435.1,3435.0,0.00436732]
[1762547124248,0.70712,3434.6,3434.5,0.00278807]
[1762547124447,0.79887806,3434.6,3434.5,0.00278807]
[1762547124742,1.4671511,3434.6,3434.5,0.00278807]
[1762547125646,0.9952311,3434.6,3434.5,0.47471807]
[1762547125834,0.66795505,3434.7,3434.6,0.70692]
[1762547126038,0.00436732,3434.9,3434.8,0.47189]
[1762547126438,0.09609287,3434.9,3434.8,0.71999]
[1762547126642,0.00436732,3434.9,3434.8,0.71999]
[1762547127149,0.47171,3436.1,3435.0,0.1015]
[1762547127349,1.23175531,3436.1,3436.0,0.47173]
[1762547127643,0.76004531,3436.1,3435.0,0.1015]
[1762547127840,0.47176,3435.8,3435.0,0.1015]
[1762547128041,1.23179531,3435.9,3435.8,0.47176]
[1762547128544,0.76004531,3435.9,3435.1,0.00436732]
[1762547128743,0.70234,3435.2,3435.1,0.00436732]
[1762547128944,0.70242,3434.6,3434.5,0.00278807]
[1762547129349,0.79415604,3434.6,3434.5,0.00278807]
[1762547129549,1.46226711,3434.6,3434.5,0.00278807]
[1762547130347,1.37053107,3434.6,3434.5,0.00278807]
[1762547130652,0.47191,3434.7,3434.5,0.47470807]
[1762547130846,0.75932613,3434.9,3434.7,0.4719]
[1762547131146,1.18057267,3435.6,3435.0,0.47186]
[1762547131345,0.2305,3435.1,3434.5,0.00278807]
[1762547131848,0.75945262,3435.1,3434.5,0.00278807]
[1762547132047,0.75945262,3435.0,3434.5,0.00278807]
[1762547132251,0.47187,3435.0,3434.5,0.00278807]
[1762547132446,0.47182,3435.3,3434.9,0.47187]
[1762547132646,0.47182,3435.3,3434.5,0.00278807]
[1762547132647,0.75954795,3435.4,3434.5,0.00278807]
[1762547132945,0.47184,3435.2,3434.5,0.00278807]
[1762547133143,0.47185,3435.1,3434.9,0.47188]
[1762547133349,0.66783101,3435.1,3435.0,0.47186]
[1762547133650,0.1355,3435.6,3434.5,0.00278807]
[1762547133851,0.47184,3435.2,3435.0,0.47186]
[1762547134049,0.75960227,3435.5,3435.0,0.47186]
[1762547134250,0.47185,3435.1,3434.9,0.47187]
[1762547134444,0.47185,3435.1,3434.5,0.00278807]
[1762547134748,0.47186,3435.1,3435.0,0.47185]
[1762547135052,0.47183,3435.3,3435.2,0.47184]
[1762547135240,0.66783087,3435.4,3435.2,0.47184]
[1762547135443,0.1355,3435.6,3435.3,0.47182]
[1762547135648,0.2305,3435.4,3435.3,0.47182]
[1762547135840,0.1355,3435.6,3435.0,0.47187]
[1762547136046,0.47184,3435.2,3435.1,0.47185]
[1762547136241,0.47189,3435.0,3434.9,0.47187]
[1762547137148,0.47189,3434.9,3434.5,0.00278807]
[1762547137542,0.47186,3435.1,3435.0,0.47185]
[1762547137951,0.47188,3435.0,3434.5,0.00278807]
[1762547138754,0.47188,3435.0,3434.9,0.47188]
[1762547138957,0.47185,3435.1,3435.0,0.47185]
[1762547139344,0.47181,3435.4,3434.5,0.00278807]
[1762547139561,0.66788079,3435.5,3434.9,0.47187]
[1762547139846,0.47187,3435.0,3434.9,0.47187]
[1762547140046,0.47186,3435.2,3435.1,0.47183]
[1762547140653,0.47183,3435.3,3435.2,0.47182]
[1762547140955,0.70233,3435.3,3435.2,0.47182]
[1762547141557,0.2305,3435.3,3435.2,0.47182]
[1762547142354,0.2305,3435.3,3434.5,0.00278807]
[1762547142652,0.71208,3435.1,3435.0,0.47185]
[1762547142952,0.2402,3434.6,3434.5,0.47471807]
[1762547143253,0.2402,3434.9,3434.8,0.47188]
[1762547143643,0.1487,3435.0,3434.9,0.47188]
[1762547143855,0.1355,3435.6,3435.1,0.47185]
[1762547143856,0.71206,3435.2,3435.1,0.47185]
[1762547144149,0.2402,3435.2,3435.1,0.47185]
[1762547144342,0.47188,3435.0,3434.9,0.47188]
[1762547144651,0.47188,3435.0,3434.7,0.47191]
[1762547144856,0.47188,3435.0,3434.8,0.47189]
[1762547145049,0.47188,3435.0,3434.5,0.13838807]
[1762547145050,0.71213,3434.6,3434.5,0.00278807]
[1762547145452,1.38182554,3434.6,3434.5,0.00278807]
[1762547145749,1.38182554,3434.6,3434.4,0.3766]
[1762547145750,0.86084,3434.5,3434.4,0.3766]
[1762547145947,0.47206,3433.7,3433.6,0.47206]
[1762547146356,0.47208,3433.5,3433.4,0.2282]
[1762547146555,0.47208,3433.5,3433.0,1.68995878]
[1762547146556,0.47212,3433.2,3433.1,0.2282]
[1762547146750,0.47432347,3433.2,3433.1,0.23157727]
[1762547147454,0.47432347,3433.2,3433.1,0.70370727]
[1762547147848,0.47432347,3433.2,3433.1,0.23157727]
[1762547148157,0.47432347,3433.2,3433.1,0.47550727]
[1762547148361,0.47432347,3433.2,3433.1,0.00337727]
[1762547148653,0.47432347,3433.2,3433.1,0.70370727]
[1762547149058,0.47432347,3433.2,3433.1,0.23157727]
[1762547149250,0.47432347,3433.2,3433.1,0.00337727]
[1762547149450,0.71452347,3433.2,3433.1,0.00337727]
[1762547149851,0.71452347,3433.2,3433.1,0.47550727]
[1762547150055,0.47432347,3433.2,3433.1,0.47550727]
[1762547150255,0.47432347,3433.2,3433.1,0.70370727]
[1762547150455,0.47432347,3433.2,3433.1,0.23157727]
[1762547150759,0.00220347,3433.2,3433.1,0.70370727]
[1762547151960,0.47432347,3433.2,3433.1,0.23157727]
[1762547152555,0.00220347,3433.2,3433.1,0.70370727]
[1762547152949,0.71452347,3433.2,3433.1,0.00337727]
[1762547153249,0.71452347,3433.2,3432.7,0.4128]
[1762547153250,0.71237,3432.8,3432.7,0.4128]
[1762547153455,0.71237,3432.8,3430.8,0.47244]
[1762547153456,0.1487,3432.0,3430.8,0.47244]
[1762547153750,0.47241,3431.1,3430.9,0.47243]
[1762547154155,0.2402,3430.5,3429.6,1.55435878]
[1762547154352,0.1487,3431.0,3429.5,0.36328243]
[1762547154555,0.47247,3430.7,3430.2,0.47252]
[1762547154748,0.1487,3431.0,3429.5,0.1356]
[1762547154959,0.1487,3431.0,3430.7,0.47245]
[1762547155151,0.1487,3431.5,3431.0,0.47241]
[1762547155460,0.1487,3431.5,3430.7,0.00288575]
[1762547155461,0.47241,3431.1,3430.7,0.00288575]
[1762547155852,0.47238,3431.3,3430.7,0.00288575]
[1762547156055,0.15133456,3431.5,3430.7,0.00288575]
[1762547156253,0.15133456,3431.5,3430.8,0.1438]
[1762547156556,0.15133456,3431.5,3431.3,0.47237]
[1762547156755,0.15133456,3431.5,3431.1,0.4724]
[1762547156955,0.62369456,3431.5,3431.2,0.47238]
[1762547157161,0.62369456,3431.5,3430.8,0.1438]
[1762547157162,0.47238,3431.4,3430.8,0.1438]
[1762547157463,0.15133456,3431.5,3431.3,0.47237]
[1762547157754,0.15133456,3431.5,3430.7,0.00288575]
[1762547157954,0.00263456,3431.5,3431.3,0.47237]
[1762547159558,1.04507267,3433.3,3432.6,0.1438]
[1762547159751,0.47205,3433.7,3432.0,0.1438]
[1762547159951,0.1487,3433.2,3432.3,0.47223]
[1762547160260,0.47213,3433.1,3432.8,0.47216]
[1762547160462,0.1487,3433.2,3432.5,0.4722]
[1762547160657,0.1487,3433.2,3432.6,0.47219]
[1762547160658,0.47217,3432.8,3432.6,0.47219]
[1762547161762,0.15676087,3433.2,3432.7,0.47217]
[1762547161956,0.47217,3432.8,3432.6,0.47219]
[1762547162563,0.15676087,3433.2,3432.5,0.00436732]
[1762547162760,0.2332,3432.9,3432.8,0.47216]
[1762547163157,0.2332,3432.9,3432.6,0.47218]
[1762547163361,0.47218,3432.7,3432.5,0.00436732]
[1762547163660,0.3819,3432.6,3432.5,0.00436732]
[1762547163865,0.47233,3431.7,3431.5,0.47234]
[1762547164065,0.47231,3431.8,3430.8,0.1438]
[1762547164271,0.70551,3431.8,3431.7,0.47232]
[1762547164565,0.2332,3431.8,3431.7,0.47232]
[1762547164869,0.2332,3431.8,3430.8,0.1438]
[1762547164870,0.70551,3431.8,3430.8,0.1438]
[1762547165065,0.70551,3431.8,3431.6,0.47233]
[1762547165666,0.2332,3431.8,3431.6,0.47233]
[1762547165862,0.1487,3432.0,3431.8,0.4723]
[1762547166467,0.47231,3431.8,3430.8,0.1438]
[1762547166767,0.47231,3431.8,3431.6,0.47233]
[1762547166964,0.1487,3432.0,3431.8,0.47229]
[1762547167159,0.1487,3432.0,3431.9,0.47229]
[1762547167354,0.1487,3432.6,3432.1,0.47226]
[1762547167555,0.47224,3432.3,3432.0,0.47226]
[1762547167761,0.1487,3432.6,3432.0,0.47228]
[1762547167762,0.47227,3432.1,3432.0,0.47228]
[1762547168263,0.1487,3432.6,3432.1,0.47225]
[1762547168463,0.1487,3432.6,3431.6,0.47233]
[1762547168664,0.2332,3431.9,3431.8,0.4723]
[1762547169567,0.47226,3432.1,3432.0,0.47228]
[1762547169766,0.47225,3432.3,3432.2,0.47224]
[1762547169970,0.47222,3432.4,3432.3,0.47223]
[1762547170170,0.2332,3432.4,3432.3,0.47223]
[1762547170664,0.47221,3432.5,3432.4,0.47221]
[1762547170867,0.15676087,3433.2,3433.1,0.47212]
[1762547171065,0.00806087,3433.2,3433.1,0.47212]
[1762547171463,0.00806087,3433.2,3433.1,0.71602]
[1762547171870,0.00806087,3433.2,3433.1,0.47212]
[1762547173271,0.00806087,3433.2,3433.1,0.71602]
[1762547174276,0.47201,3433.9,3433.8,0.47202]
[1762547174866,0.67323607,3434.1,3433.2,0.1438]
[1762547175070,0.2332,3434.4,3434.3,0.47196]
[1762547175365,0.23560754,3434.4,3433.3,0.00436732]
[1762547175568,0.00240754,3434.4,3434.3,0.47196]
[1762547177278,0.00240754,3434.4,3434.3,0.71586]
[1762547177669,0.00240754,3434.4,3434.3,0.2439]
[1762547177670,0.47434754,3434.4,3434.3,0.2439]
[1762547177971,0.00240754,3434.4,3434.3,0.71585]
[1762547179379,0.47198,3434.2,3434.1,0.47198]
[1762547179565,0.00240754,3434.4,3434.3,0.71585]
[1762547190586,7.54e-06,3434.4,3434.3,0.71585]
[1762547190784,7.54e-06,3434.4,3433.8,0.4473]
[1762547190980,0.47197,3434.3,3433.8,0.4473]
[1762547191284,7.54e-06,3434.4,3434.3,0.71705]
[1762547192087,0.1487,3435.6,3434.3,6.0683]
[1762547192285,0.70734,3435.9,3435.8,0.47174]
[1762547192478,0.47169,3436.2,3436.1,0.4717]
[1762547192785,0.70734,3435.9,3435.0,0.1377]
[1762547193287,0.47179,3435.6,3435.5,0.47179]
[1762547193584,0.00436732,3435.8,3435.1,0.00436732]
[1762547193782,0.47178,3435.6,3435.5,0.47179]
[1762547194081,0.00436732,3435.8,3435.1,0.00436732]
[1762547194082,0.2356,3435.7,3435.6,0.47178]
[1762547194387,0.00436732,3435.8,3435.7,0.47177]
[1762547194996,0.47611732,3435.8,3435.7,0.47177]
[1762547195291,0.00436732,3435.8,3435.7,0.47177]
[1762547195896,0.00436732,3435.8,3435.7,0.71687]
[1762547197102,0.00436732,3435.8,3435.7,0.47177]
[1762547198293,0.00436732,3435.8,3435.7,0.71687]
[1762547206297,0.23996732,3435.8,3435.6,0.47176]
[1762547206507,0.76078875,3435.8,3435.7,0.72006]
[1762547206802,0.00436732,3435.8,3435.7,0.72006]
[1762547208299,0.71931732,3435.8,3435.5,0.1466]
[1762547208505,0.47176,3435.7,3435.1,0.00436732]
[1762547208704,0.24756732,3435.8,3435.6,0.47178]
[1762547209005,0.71499,3435.6,3435.5,0.47179]
[1762547209199,0.4718,3435.5,3435.4,0.47179]
[1762547209401,0.71502,3435.4,3435.3,0.47182]
[1762547210111,0.80603711,3435.4,3435.3,0.47182]
[1762547210306,1.4722451,3435.4,3435.3,0.47182]
[1762547210999,0.7572251,3435.4,3435.1,0.47620732]
[1762547211303,0.2432,3435.2,3435.1,0.47620732]
[1762547211600,0.66679434,3435.3,3435.2,0.47183]
[1762547211803,0.09102002,3435.3,3435.2,0.72013]
[1762547212005,0.75804188,3435.7,3435.6,0.72007]
[1762547212600,0.09102002,3435.7,3435.6,0.72007]
[1762547213897,0.75804188,3435.7,3435.6,0.72007]
[1762547214208,0.09102002,3435.7,3435.6,0.72007]
[1762547214404,0.09538734,3435.8,3435.7,0.47176]
[1762547214700,0.09538734,3435.8,3435.7,0.72006]
[1762547214901,0.00436732,3435.8,3435.7,0.72006]
[1762547218803,1.28927267,3436.8,3436.7,0.47162]
[1762547219114,1.28927267,3436.8,3436.7,0.71592]
[1762547219115,1.47512977,3436.8,3436.7,0.71592]
[1762547219813,1.47804891,3436.8,3436.7,0.71592]
[1762547220010,1.47804891,3436.8,3436.7,0.2443]
[1762547220212,1.00643891,3436.8,3436.7,0.2443]
[1762547220407,1.47804891,3436.8,3436.7,0.71592]
[1762547220609,1.23384891,3436.8,3436.7,0.71592]
[1762547221010,0.1353,3436.5,3436.0,0.1389]
[1762547221316,0.1353,3436.5,3436.0,0.47172]
[1762547221317,0.71591,3436.1,3436.0,0.47172]
[1762547221614,1.47522977,3436.1,3436.0,0.47172]
[1762547222414,1.4761146,3436.1,3436.0,0.47172]
[1762547222915,1.0044046,3436.1,3436.0,0.71602]
[1762547223109,0.7602046,3436.1,3436.0,0.71602]
[1762547223710,0.47172,3436.0,3435.9,0.47172]
[1762547223913,1.2319246,3436.0,3435.9,0.47172]
[1762547224616,0.7602046,3436.0,3435.9,0.71602]
[1762547224817,0.66855835,3436.3,3436.0,0.1389]
[1762547225013,0.75957639,3436.2,3436.1,0.71601]
[1762547225318,0.66857817,3436.3,3436.2,0.71599]
[1762547225623,1.51961181,3436.8,3436.7,0.47162]
[1762547225825,0.76260034,3436.8,3436.7,0.47162]
[1762547226119,1.47842034,3436.8,3436.7,0.47162]
[1762547226324,0.1353,3436.5,3436.0,0.1389]
[1762547226525,0.2442,3436.1,3436.0,0.47172]
[1762547227017,0.66868641,3436.2,3436.1,0.71601]
[1762547227231,0.00291914,3436.8,3436.0,0.1389]
[1762547227422,0.80971958,3436.8,3436.7,0.47163]
[1762547227621,1.47791158,3436.8,3436.7,0.47163]
[1762547227816,0.47165,3436.5,3436.4,0.47165]
[1762547228023,0.71585,3436.5,3436.4,0.47165]
[1762547228217,1.519342,3436.5,3436.4,0.47165]
[1762547229628,0.912392,3436.5,3436.4,0.47165]
[1762547229826,0.00291914,3436.8,3436.0,0.1389]
[1762547229827,0.00291914,3436.8,3436.7,0.2443]
[1762547230016,0.24711914,3436.8,3436.1,1.56147453]
[1762547230219,0.47169,3436.3,3435.6,1.56147453]
[1762547230424,0.47169,3436.3,3435.5,1.70807453]
[1762547230724,0.66779988,3436.4,3435.6,1.56147453]
[1762547230924,0.71594,3436.0,3435.9,0.47172]
[1762547231129,0.71589,3436.3,3436.2,0.47169]
[1762547231523,0.71589,3436.2,3436.1,0.47171]
[1762547231823,1.37158937,3436.2,3436.1,0.47171]
[1762547232431,0.89989937,3436.2,3436.1,0.47171]
[1762547232628,0.90024093,3436.2,3436.1,0.47171]
[1762547232828,0.2442,3436.2,3436.1,0.47171]
[1762547233427,0.90024093,3436.2,3436.1,0.47171]
[1762547234127,0.2442,3436.2,3436.1,0.47171]
[1762547234729,0.71588,3436.4,3436.3,0.47167]
[1762547234928,0.47168,3436.3,3435.6,1.56147453]
[1762547235227,0.71589,3436.2,3436.1,0.47171]
[1762547235435,0.2442,3436.2,3436.1,0.47171]
[1762547236536,0.00291914,3436.8,3436.7,0.47162]
[1762547236727,0.00291914,3436.8,3436.7,0.71592]
[1762547237126,0.24711914,3436.8,3436.7,0.71592]
[1762547237329,0.2442,3436.4,3436.3,0.47168]
[1762547237732,0.71584,3436.6,3436.5,0.47165]
[1762547237931,0.90058194,3436.6,3436.5,0.47165]
[1762547238230,0.00291914,3436.8,3436.7,0.71592]
[1762547238429,0.65605525,3437.2,3437.1,0.2443]
[1762547238627,0.2442,3437.5,3437.4,0.47152]
[1762547239031,1.50706023,3437.5,3437.4,0.47152]
[1762547239443,1.51003011,3437.5,3437.4,0.47152]
[1762547240325,0.47155,3437.3,3437.2,0.47155]
[1762547240524,0.71576,3437.2,3437.1,0.47593732]
[1762547240928,2.50753354,3437.2,3437.1,0.00436732]
[1762547241330,2.03597354,3437.2,3437.1,0.00436732]
[1762547241535,0.89992577,3437.2,3437.1,0.47593732]
[1762547241933,0.2442,3437.2,3437.1,0.47593732]
[1762547242134,0.13826988,3437.5,3437.3,0.47154]
[1762547242135,0.71573,3437.4,3437.3,0.47154]
[1762547242334,0.47155,3437.2,3437.1,0.00436732]
[1762547242536,0.71575,3437.2,3437.1,0.00436732]
[1762547242734,0.13826988,3437.5,3437.2,0.71585]
[1762547242735,0.65572577,3437.3,3437.2,0.71585]
[1762547242936,0.00296988,3437.5,3437.4,0.71583]
[1762547244639,0.1353,3438.5,3437.5,0.1389]
[1762547244938,0.2442,3438.6,3438.3,0.47139]
[1762547245136,0.2442,3438.6,3438.5,0.47138]
[1762547245338,0.22632904,3439.0,3438.7,0.47134]
[1762547245339,0.2442,3438.8,3438.7,0.47134]
[1762547245738,0.1353,3439.0,3438.8,0.47133]
[1762547245939,0.00436732,3439.1,3439.0,0.85451]
[1762547246241,0.00436732,3439.1,3438.7,0.00358391]
[1762547246242,0.1439,3439.0,3438.7,0.00358391]
[1762547246632,0.1439,3439.0,3438.8,0.47133]
[1762547246836,0.1439,3439.0,3438.7,0.00358391]
[1762547246837,0.47841544,3439.1,3439.0,0.47131]
[1762547247144,0.246,3438.8,3438.7,0.00358391]
[1762547247341,0.47132,3438.9,3438.8,0.47133]
[1762547247640,0.00711544,3439.1,3438.9,0.47132]
[1762547247841,0.47133,3438.9,3438.7,0.47492391]
[1762547248043,0.246,3438.8,3438.7,0.00358391]
[1762547249134,0.00711544,3439.1,3438.7,0.00358391]
[1762547249342,0.47132,3438.9,3438.8,0.47133]
[1762547249545,0.47131,3439.0,3438.9,0.47132]
[1762547249728,0.47131,3439.0,3438.7,0.00358391]
[1762547249729,0.47133,3438.8,3438.7,0.00358391]
[1762547250238,0.3899,3439.0,3438.9,0.47132]
[1762547250431,0.00711544,3439.1,3439.0,0.47131]
[1762547250835,0.00711544,3439.1,3439.0,0.85891]
[1762547251842,0.4712,3439.8,3439.0,0.1492]
[1762547252145,0.246,3439.7,3439.6,0.47122]
[1762547252339,0.1353,3440.0,3439.7,0.4712]
[1762547252644,0.47129,3439.1,3439.0,0.1492]
[1762547252845,0.47503677,3439.1,3439.0,0.85891]
[1762547253047,0.00374677,3439.1,3439.0,0.85891]
[1762547254737,0.0028552,3439.4,3439.3,0.70967]
[1762547255738,0.00510249,3439.4,3439.3,0.70967]
[1762547256742,0.1353,3440.5,3440.3,0.47113]
[1762547256937,0.1353,3440.5,3440.2,0.47114]
[1762547257736,0.00250197,3440.5,3440.0,0.1391]
[1762547258044,0.00250197,3440.5,3440.4,0.70952]
[1762547259146,0.47360197,3440.5,3440.4,0.2384]
[1762547259345,0.47360197,3440.5,3440.0,0.1391]
[1762547259346,0.1439,3441.5,3441.0,0.47103]
[1762547259542,0.47101,3441.2,3441.0,0.47103]
[1762547259747,0.47102,3441.1,3441.0,0.47103]
[1762547260149,0.47102,3441.1,3441.0,0.62023]
[1762547260448,0.47103,3441.0,3440.9,0.00436072]
[1762547261448,0.00360816,3441.1,3440.9,0.47540072]
[1762547261645,0.00360816,3441.1,3441.0,0.47103]
[1762547261950,0.00360816,3441.1,3441.0,0.70943]
[1762547262145,0.47462816,3441.1,3441.0,0.47103]
[1762547262347,0.00360816,3441.1,3441.0,0.47103]
[1762547262545,0.00360816,3441.1,3441.0,0.69593]
[1762547262741,0.00360816,3441.1,3441.0,0.83613]
[1762547263449,0.1439,3442.0,3441.0,0.1402]
[1762547263647,0.71761,3441.9,3441.8,0.47092]
[1762547264240,0.47095,3441.7,3441.0,0.1402]
[1762547264452,0.47378209,3441.7,3441.6,0.47095]
[1762547264750,0.00283209,3441.7,3441.6,0.47095]
[1762547266151,0.47377209,3441.7,3441.5,0.47096]
[1762547266452,0.00283209,3441.7,3441.6,0.47095]
[1762547266651,0.00283209,3441.7,3441.0,0.1435552]
[1762547267147,0.00283209,3441.7,3441.6,0.47095]
[1762547267544,0.00283209,3441.7,3441.6,0.69585]
[1762547271055,0.09084355,3442.5,3442.4,0.69574]
[1762547271259,0.56163355,3442.8,3442.7,0.2249]
[1762547271450,0.47079,3442.8,3442.7,0.4708]
[1762547271651,0.09084355,3442.9,3442.8,0.47079]
[1762547271847,0.09084355,3443.0,3442.8,0.69569]
[1762547272054,0.47077,3442.9,3442.8,0.69569]
[1762547272257,0.47081,3442.6,3442.5,0.3651]
[1762547272456,0.09084355,3442.8,3442.7,0.2249]
[1762547272653,0.09084355,3442.9,3442.8,0.69569]
[1762547273058,0.09084355,3442.9,3442.8,0.2249]
[1762547273260,0.09084355,3442.9,3442.8,0.69568]
[1762547273854,0.56161355,3442.9,3442.8,0.2249]
[1762547274154,0.09084355,3442.9,3442.8,0.69568]
[1762547274552,0.00310273,3443.0,3442.9,0.69567]
[1762547274751,0.147,3444.5,3443.6,0.2249]
[1762547274953,0.47065,3443.8,3443.6,0.2249]
[1762547275154,0.147,3444.5,3443.7,0.47066]
[1762547275358,0.147,3444.5,3444.0,0.47062]
[1762547275555,0.4706,3444.2,3444.0,0.47062]
[1762547275755,5.181,3445.0,3444.0,0.47062]
[1762547275756,1.04507267,3445.4,3444.6,0.2249]
[1762547275959,1.04507267,3445.6,3444.6,0.2249]
[1762547276261,0.1351,3444.5,3444.1,0.4706]
[1762547276453,0.60566,3444.5,3444.1,0.4706]
[1762547276652,0.13878668,3444.5,3444.0,0.00223122]
[1762547276851,0.60934668,3444.5,3444.1,0.4706]
[1762547277057,0.60934668,3444.5,3444.0,0.00223122]
[1762547277262,0.60934668,3444.5,3444.3,0.47058]
[1762547277557,0.13878668,3444.5,3444.3,0.47058]
[1762547277757,0.4705,3444.9,3444.0,0.09293122]
[1762547278154,0.1351,3445.0,3444.7,0.47052]
[1762547278660,0.4705,3444.9,3444.7,0.47052]
[1762547278859,0.13867862,3445.0,3444.0,0.09293122]
[1762547279055,0.13867862,3445.0,3444.5,0.47055]
[1762547279258,0.47053,3444.8,3444.6,0.47054]
[1762547279655,0.47053,3444.7,3444.4,0.47056]
[1762547279858,0.47053,3444.7,3444.0,0.09293122]
[1762547279859,0.47053,3444.7,3444.5,0.47055]
[1762547280556,0.47052,3444.8,3444.6,0.47054]
[1762547280861,0.4705,3444.9,3444.7,0.47052]
[1762547281058,0.13867862,3445.0,3444.6,0.47053]
[1762547281258,0.47053,3444.7,3444.0,0.00223122]
[1762547281562,0.47058,3444.4,3444.1,0.70261]
[1762547281766,0.1351,3444.5,3444.1,0.70261]
[1762547281767,0.47058,3444.3,3444.1,0.70261]
[1762547282056,0.2279,3444.1,3444.0,0.00223122]
[1762547282255,0.47057,3444.4,3444.0,0.00223122]
[1762547282463,0.60566,3444.5,3444.2,0.47059]
[1762547282659,0.13867862,3445.0,3444.4,0.232]
[1762547282660,0.47054,3444.7,3444.4,0.232]
[1762547282864,0.13867862,3445.0,3444.8,0.47051]
[1762547283067,0.60916862,3445.0,3444.8,0.47051]
[1762547283561,0.47051,3444.8,3444.0,0.00223122]
[1762547283767,0.13867862,3445.0,3444.0,0.00223122]
[1762547284065,0.60916862,3445.0,3444.8,0.47051]
[1762547284266,0.4705,3444.9,3444.8,0.47051]
[1762547284564,0.47052,3444.8,3444.0,0.00223122]
[1762547284758,0.47051,3444.9,3444.8,0.47053]